bitfinex/quotes_ETHUSD_20250720
["timestamp","ask_amount","ask_price","bid_price","bid_amount"]
[1753027354848,0.55,3790.1,3789.8,0.1312]
[1753027355050,0.55,3789.9,3789.8,0.1312]
[1753027355410,0.9794,3789.9,3789.8,0.1312]
[1753027355806,3.61799204,3789.9,3789.8,0.1312]
[1753027356011,3.18880092,3789.6,3789.5,0.001]
[1753027356407,0.9794,3789.6,3789.5,0.001]
[1753027356644,3.61820092,3789.6,3789.5,0.001]
[1753027357256,0.9794,3789.6,3789.5,0.001]
[1753027357577,3.61820092,3789.6,3789.5,0.001]
[1753027358126,0.9794,3789.6,3789.5,0.001]
[1753027358631,3.61820092,3789.6,3789.5,0.001]
[1753027359157,0.9794,3789.6,3789.5,0.001]
[1753027359583,3.61820092,3789.6,3789.5,0.001]
[1753027360573,8.07220092,3789.6,3789.5,0.001]
[1753027362436,3.61820092,3789.6,3789.5,0.001]
[1753027362636,0.9794,3789.6,3789.5,0.001]
[1753027362835,8.06420092,3789.6,3789.5,0.001]
[1753027363257,4.446,3789.7,3789.5,0.001]
[1753027363574,1.0317,3789.9,3789.5,0.1322]
[1753027363775,3.67029897,3789.9,3789.5,0.1322]
[1753027364076,0.55,3789.7,3789.5,0.1322]
[1753027364284,0.4294,3789.8,3789.5,0.1322]
[1753027364779,0.4294,3789.7,3789.5,0.1322]
[1753027364974,3.18880092,3789.6,3789.5,0.1322]
[1753027365175,0.55,3789.6,3789.5,0.1322]
[1753027365376,3.61820092,3789.6,3789.5,0.1322]
[1753027365585,0.9794,3789.6,3789.5,0.001]
[1753027365955,0.55,3789.6,3789.5,0.001]
[1753027366263,0.55,3789.6,3789.5,0.1322]
[1753027366464,0.55,3789.6,3789.5,0.40931907]
[1753027367281,0.55,3789.6,3789.5,3.24287056]
[1753027367582,0.55,3789.6,3789.5,6.26925926]
[1753027367780,0.55,3789.6,3789.5,6.24287056]
[1753027367984,1.0676,3790.4,3789.6,3.0]
[1753027368227,1.0676,3790.4,3790.2,0.1312]
[1753027368497,3.64517908,3791.0,3790.3,0.1312]
[1753027368680,0.55,3790.9,3790.3,0.1312]
[1753027368996,2.63791169,3790.9,3790.8,0.1312]
[1753027369197,2.63791169,3790.9,3789.6,0.62429285]
[1753027369198,0.55,3790.9,3789.6,4.433]
[1753027369395,0.55,3790.3,3789.7,3.0]
[1753027369583,3.18831412,3790.3,3789.7,3.0]
[1753027369896,0.55,3790.3,3789.5,4.436]
[1753027370095,3.18822591,3790.5,3789.6,3.0]
[1753027370398,0.55,3790.5,3789.7,2.66507231]
[1753027370695,1.0073,3791.0,3789.7,4.46138731]
[1753027370900,1.0073,3791.0,3789.6,3.0]
[1753027370901,0.55,3790.4,3789.6,3.0]
[1753027371102,0.55,3790.5,3789.9,3.0]
[1753027371419,1.4367,3791.0,3789.9,4.03365868]
[1753027371563,1.4367,3791.0,3789.9,6.67222408]
[1753027371564,0.55,3790.9,3789.9,6.67222408]
[1753027371876,0.55,3790.9,3789.9,4.00727276]
[1753027372072,0.4294,3790.8,3789.6,0.4718]
[1753027372280,0.55,3790.3,3789.6,3.0]
[1753027372478,0.55,3790.4,3789.7,4.43]
[1753027373010,3.18827091,3790.4,3789.7,4.43]
[1753027373163,0.55,3790.1,3789.5,0.001]
[1753027373371,1.5573,3790.1,3789.7,3.0]
[1753027373707,0.4294,3790.0,3789.6,3.0]
[1753027374598,1.5573,3790.1,3789.6,3.0]
[1753027374961,3.06792683,3790.0,3789.6,3.0]
[1753027375167,0.4294,3790.0,3789.6,3.0]
[1753027375463,1.5573,3790.5,3789.6,3.768688]
[1753027375804,1.5573,3790.5,3789.6,4.240488]
[1753027375977,1.5573,3790.5,3789.7,7.06068747]
[1753027376173,2.6378797,3791.0,3790.0,2.63851204]
[1753027376378,2.63803057,3790.8,3789.9,1.0261]
[1753027376678,2.6379904,3790.8,3790.0,0.55612864]
[1753027377173,2.6379904,3790.8,3790.0,4.97812864]
[1753027377174,0.4294,3790.8,3790.0,4.97812864]
[1753027377376,0.55,3790.7,3790.0,7.97812864]
[1753027377704,2.63789601,3790.9,3790.1,0.02638452]
[1753027378000,0.55,3790.7,3790.0,7.97812864]
[1753027378197,2.63807768,3790.7,3790.0,7.97812864]
[1753027378502,0.55,3790.8,3790.0,7.97812864]
[1753027378701,1.0073,3791.1,3790.1,3.76868452]
[1753027378902,1.0073,3791.1,3790.1,4.23298452]
[1753027379089,1.0073,3791.1,3790.9,0.1312]
[1753027379294,0.002,3791.2,3790.9,0.1312]
[1753027379605,0.002,3791.2,3791.1,0.1312]
[1753027381065,1.0072,3791.2,3791.1,0.1312]
[1753027381264,1.0072,3791.2,3790.8,0.1312]
[1753027381265,0.4572,3791.2,3790.8,0.1312]
[1753027381705,0.55,3791.1,3790.8,0.1312]
[1753027381913,0.4572,3791.2,3790.8,0.1312]
[1753027382402,0.55,3791.1,3790.8,0.1312]
[1753027382600,0.002,3791.2,3790.8,0.1312]
[1753027382804,0.002,3791.2,3790.6,4.409]
[1753027383011,0.002,3791.2,3791.1,0.1312]
[1753027383234,0.55,3790.7,3790.6,3.0]
[1753027383431,3.18810478,3790.6,3790.5,0.1312]
[1753027383627,0.55,3790.6,3790.2,0.1312]
[1753027383829,1.0447,3791.2,3790.3,0.02638313]
[1753027384139,2.02339,3791.2,3790.5,0.1312]
[1753027384344,0.55,3790.8,3790.5,0.1312]
[1753027384499,0.55,3790.6,3790.5,0.1312]
[1753027384847,3.64330478,3790.6,3790.2,3.0]
[1753027385012,0.55,3790.4,3790.3,0.1312]
[1753027385564,0.55,3790.9,3790.3,0.88492]
[1753027385696,0.55,3790.5,3790.3,0.1312]
[1753027385896,0.55,3790.9,3790.3,0.1312]
[1753027386296,0.55,3790.9,3790.2,4.405]
[1753027386297,0.55,3791.0,3790.6,0.1312]
[1753027386832,0.55,3791.1,3790.6,0.1312]
[1753027387232,0.55,3790.9,3790.6,0.1312]
[1753027387419,0.55,3791.1,3790.6,0.1312]
[1753027387617,0.55,3791.1,3790.0,2.66490529]
[1753027387618,0.55,3790.7,3789.8,2.63861447]
[1753027387832,0.55,3790.7,3790.4,0.1312]
[1753027388038,3.18786757,3791.0,3790.4,0.1312]
[1753027388410,0.55,3791.0,3790.4,0.1312]
[1753027388638,1.0052,3791.1,3790.9,0.1312]
[1753027388832,1.0447,3791.2,3790.6,0.1312]
[1753027388999,0.55,3791.1,3790.6,1.1708]
[1753027389202,0.55,3791.1,3790.6,1.0396]
[1753027389466,0.002,3791.2,3790.6,1.49262824]
[1753027390415,0.002,3791.2,3790.7,2.63799021]
[1753027390735,0.002,3791.2,3790.9,2.63782764]
[1753027390937,0.002,3791.2,3790.8,4.394]
[1753027391118,0.002,3791.2,3790.9,3.0]
[1753027391317,0.002,3791.2,3790.9,4.3097004]
[1753027391730,0.002,3791.2,3791.1,5.63775685]
[1753027392442,0.002,3791.2,3791.1,7.14165685]
[1753027392843,0.002,3791.2,3791.1,11.53265685]
[1753027394545,0.002,3791.2,3791.1,8.8919]
[1753027394855,0.002,3791.2,3791.1,9.34492824]
[1753027395162,0.002,3791.2,3791.1,7.384]
[1753027395360,0.4572,3791.2,3789.8,5.2043]
[1753027395659,0.55,3791.1,3790.3,2.6383041]
[1753027395872,0.002,3791.2,3790.8,2.63792885]
[1753027396159,0.002,3791.2,3790.9,4.40837896]
[1753027396448,0.002,3791.2,3791.1,5.63775685]
[1753027396653,0.002,3791.2,3791.1,7.382]
[1753027396854,0.002,3791.2,3791.1,3.0]
[1753027397419,0.002,3791.2,3790.3,1.0075]
[1753027397738,0.55,3791.1,3790.4,4.38]
[1753027398254,0.55,3791.1,3790.6,3.0]
[1753027399015,0.55,3791.0,3789.9,1.0681]
[1753027399245,0.55,3790.9,3790.0,4.375]
[1753027399454,3.18805662,3790.7,3790.4,0.1312]
[1753027399620,3.18817438,3790.5,3790.4,0.1312]
[1753027399815,1.0052,3790.5,3790.4,0.1312]
[1753027400018,3.64337438,3790.5,3790.4,0.1312]
[1753027400254,3.64337438,3790.5,3790.1,3.0]
[1753027400452,3.64337438,3790.5,3790.1,3.1312]
[1753027400453,3.64340175,3790.5,3790.1,3.1312]
[1753027400659,0.4552,3790.5,3790.1,0.1312]
[1753027400967,0.1312,3790.8,3790.1,0.1312]
[1753027401256,0.55,3790.7,3790.4,0.1312]
[1753027401461,1.0862,3791.1,3790.1,4.20769906]
[1753027401663,2.6379656,3790.8,3790.7,0.1312]
[1753027402003,0.55,3790.6,3790.2,0.1312]
[1753027402135,0.4552,3790.8,3790.6,0.1312]
[1753027402522,0.55,3790.7,3790.6,0.1312]
[1753027402746,3.18803519,3790.7,3790.6,0.1312]
[1753027403022,1.36952352,3790.7,3790.3,0.1312]
[1753027403233,0.55,3790.4,3790.3,0.1312]
[1753027403549,0.1312,3791.0,3790.3,3.1312]
[1753027403747,1.0862,3791.1,3790.4,0.02638243]
[1753027403970,2.63969976,3791.2,3790.5,3.0]
[1753027403971,0.002,3791.2,3790.5,3.0]
[1753027404135,2.63970725,3791.2,3790.9,0.1312]
[1753027404333,0.4552,3791.1,3790.9,0.1312]
[1753027404751,3.64302643,3791.0,3790.3,4.375]
[1753027404926,1.0052,3791.0,3790.8,0.1312]
[1753027405131,3.09316374,3790.9,3790.8,0.1312]
[1753027405530,0.55,3790.8,3790.2,3.0]
[1753027405759,0.55,3790.8,3790.6,0.1312]
[1753027405760,3.18797571,3790.8,3790.6,0.1312]
[1753027405939,2.63817438,3790.5,3790.0,4.37]
[1753027406148,0.55,3790.4,3790.1,3.1312]
[1753027407263,0.55,3790.4,3790.3,0.1312]
[1753027408029,0.55,3790.8,3790.3,0.1312]
[1753027408351,0.55,3790.6,3790.3,0.1312]
[1753027408665,0.55,3790.6,3790.0,3.0]
[1753027408863,0.55,3790.6,3790.5,0.1312]
[1753027409073,2.63805538,3790.7,3790.5,0.1312]
[1753027409074,0.55,3790.8,3790.5,0.1312]
[1753027409250,3.18798936,3790.8,3790.5,0.1312]
[1753027409454,0.9805,3790.8,3790.5,0.1312]
[1753027409859,3.61847815,3790.8,3790.5,0.1312]
[1753027410034,0.55,3790.8,3790.5,0.1312]
[1753027410232,0.002,3791.2,3790.5,0.4341]
[1753027410443,0.002,3791.2,3790.7,0.1312]
[1753027410740,0.002,3791.2,3791.1,0.1312]
[1753027411156,3.18968727,3791.2,3791.1,0.1312]
[1753027411470,0.552,3791.2,3791.1,0.1312]
[1753027411656,3.18968727,3791.2,3791.1,0.1312]
[1753027411859,0.552,3791.2,3791.1,0.1312]
[1753027412867,3.18968727,3791.2,3791.1,0.1312]
[1753027413070,0.552,3791.2,3791.1,0.1312]
[1753027414775,3.18968727,3791.2,3791.1,0.1312]
[1753027414979,0.552,3791.2,3791.1,0.1312]
[1753027416434,0.002,3791.2,3791.1,3.20305685]
[1753027416636,0.002,3791.2,3791.1,11.13114692]
[1753027417692,0.002,3791.2,3791.1,12.22924692]
[1753027419289,0.002,3791.2,3791.1,3.71529007]
[1753027419493,0.002,3791.2,3790.9,1.0981]
[1753027419933,0.002,3791.2,3791.0,2.63781985]
[1753027420136,0.002,3791.2,3791.0,0.4341]
[1753027420360,0.002,3791.2,3791.1,6.07185685]
[1753027420575,0.002,3791.2,3791.1,7.7731]
[1753027420736,0.002,3791.2,3791.1,3.0]
[1753027420937,0.002,3791.2,3791.1,7.338]
[1753027421483,0.002,3791.2,3791.1,6.07185685]
[1753027421634,0.002,3791.2,3791.1,7.337]
[1753027421838,0.002,3791.2,3791.1,9.97475685]
[1753027422151,0.002,3791.2,3791.1,7.337]
[1753027422351,0.002,3791.2,3791.1,10.40985685]
[1753027423284,0.002,3791.2,3791.1,10.40785685]
[1753027423866,0.002,3791.2,3791.1,6.07285685]
[1753027424055,0.002,3791.2,3791.1,10.40685685]
[1753027424769,1e-08,3791.2,3791.1,19.14577648]
[1753027425284,1e-08,3791.2,3791.1,19.14477648]
[1753027425494,1e-08,3791.2,3791.1,16.36477648]
[1753027425657,0.0265241,3791.7,3791.4,2.63749332]
[1753027425843,0.0265241,3791.7,3791.6,6.735709]
[1753027426352,0.0265241,3791.7,3791.6,7.169809]
[1753027426560,0.0265241,3791.7,3791.6,7.669809]
[1753027426761,0.0265241,3791.7,3791.6,11.998809]
[1753027426968,0.0265241,3791.7,3791.6,7.669809]
[1753027427146,0.0265241,3791.7,3791.6,12.001809]
[1753027428245,0.0265241,3791.7,3791.6,11.998809]
[1753027428444,1e-08,3791.7,3791.6,22.00857327]
[1753027428782,1e-08,3791.7,3791.6,16.659809]
[1753027428939,1e-08,3791.7,3791.6,12.329809]
[1753027429368,1e-08,3791.7,3791.6,16.794009]
[1753027430056,1e-08,3791.7,3791.6,12.461009]
[1753027430252,1e-08,3791.7,3791.6,16.793009]
[1753027430654,1e-08,3791.7,3791.6,14.913009]
[1753027430846,1e-08,3791.7,3791.6,10.581009]
[1753027431048,1e-08,3792.0,3791.9,2.63720034]
[1753027431378,1e-08,3792.0,3791.9,11.03977234]
[1753027431577,1e-08,3792.0,3791.9,11.44750034]
[1753027431779,1e-08,3792.0,3791.9,11.57870034]
[1753027432679,1e-08,3792.2,3792.1,6.68326125]
[1753027432882,1e-08,3792.2,3792.1,11.01526125]
[1753027433181,1e-08,3792.2,3792.1,0.1312]
[1753027433484,1e-08,3792.2,3792.1,7.24626125]
[1753027433986,1e-08,3792.2,3792.1,5.76826125]
[1753027434145,1e-08,3792.2,3792.1,6.20236125]
[1753027434494,1e-08,3792.2,3792.1,7.08631705]
[1753027434845,1e-08,3792.2,3792.1,4.0151558]
[1753027435051,1e-08,3792.2,3792.1,0.1312]
[1753027435270,1e-08,3792.2,3792.1,4.5092]
[1753027435567,1e-08,3792.2,3792.1,3.20236125]
[1753027435881,1e-08,3792.2,3792.1,10.14526125]
[1753027436199,1.55890001,3792.2,3792.1,0.1312]
[1753027436399,0.55,3792.1,3791.1,0.001]
[1753027436618,0.55,3791.9,3791.1,4.389]
[1753027437117,1.00890001,3792.2,3791.3,1.0439]
[1753027437408,0.9805,3792.1,3791.3,3.0]
[1753027437612,3.61756817,3792.1,3791.3,3.0]
[1753027437813,0.9805,3792.1,3791.5,3.0]
[1753027438113,0.9805,3792.1,3791.5,3.02637478]
[1753027438114,0.4305,3792.1,3791.5,3.02637478]
[1753027438409,1e-08,3792.2,3791.8,0.5]
[1753027438587,1e-08,3792.2,3791.9,0.485472]
[1753027438792,1e-08,3792.2,3792.1,5.63706125]
[1753027439217,1e-08,3792.2,3792.1,9.9644051]
[1753027439356,1e-08,3792.2,3792.1,9.93803449]
[1753027440073,1e-08,3792.2,3792.1,9.93803432]
[1753027440317,1e-08,3792.2,3792.1,6.69166125]
[1753027440600,1e-08,3792.2,3792.1,11.5438956]
[1753027440797,1e-08,3792.2,3792.1,6.6987956]
[1753027440962,1e-08,3792.2,3792.1,10.0331956]
[1753027441162,1e-08,3792.2,3792.1,7.39613435]
[1753027441915,1e-08,3792.2,3792.1,0.00713435]
[1753027442218,1e-08,3792.2,3792.1,5.6441956]
[1753027442384,1e-08,3792.2,3792.1,5.67056621]
[1753027442709,4.67919172,3792.2,3792.1,0.00713435]
[1753027444911,4.67919172,3792.2,3792.1,0.00813435]
[1753027445084,4.68119172,3792.2,3792.1,0.00813435]
[1753027447235,4.22649172,3792.2,3792.1,0.00813435]
[1753027447418,5.3675307,3792.2,3792.1,0.00813435]
[1753027447618,3.18768727,3791.2,3791.1,0.001]
[1753027447842,4.25448727,3791.2,3791.1,0.001]
[1753027447980,4.70918727,3791.2,3791.1,0.001]
[1753027448181,4.25504398,3790.4,3790.3,0.001]
[1753027448494,1.6168,3790.4,3790.3,0.001]
[1753027448682,1.0668,3791.2,3790.3,2.6392937]
[1753027448881,0.55,3791.1,3790.3,4.49258313]
[1753027449113,0.4547,3791.4,3790.5,3.0]
[1753027449316,1.0668,3791.6,3790.6,0.71308271]
[1753027449615,1.0668,3791.6,3790.7,0.48548035]
[1753027450122,1.0668,3791.6,3790.9,2.63784702]
[1753027450294,1.0668,3791.6,3790.8,3.0]
[1753027450295,3.70421048,3791.6,3790.8,2.63794275]
[1753027450483,3.70421048,3791.6,3790.9,2.63788304]
[1753027450684,0.55,3791.5,3791.0,3.0]
[1753027450893,3.18752454,3791.5,3790.7,2.63796687]
[1753027451112,2.6378235,3791.1,3790.5,3.0]
[1753027451445,0.55,3790.6,3790.3,0.001]
[1753027451615,3.18804661,3790.7,3790.3,0.001]
[1753027451934,3.18824398,3790.4,3790.3,0.001]
[1753027452098,0.55,3790.4,3790.3,0.001]
[1753027452494,0.55,3790.7,3790.3,0.001]
[1753027452796,0.55,3790.7,3790.4,2.63824398]
[1753027453005,1.0045,3791.3,3790.6,0.5]
[1753027453437,2.63776606,3791.1,3790.6,0.5]
[1753027453622,3.64213031,3791.3,3790.6,3.13809404]
[1753027453809,3.64213031,3791.3,3790.6,0.5]
[1753027453810,0.55,3790.9,3790.6,0.5]
[1753027454135,1.0197,3791.7,3790.7,0.4591]
[1753027454319,1.0197,3791.7,3791.1,2.63768857]
[1753027454493,3.65705153,3791.7,3791.0,5.66420326]
[1753027454699,1.0197,3791.7,3791.0,0.90249854]
[1753027454996,1.0197,3791.7,3791.1,2.63774623]
[1753027455192,1.0197,3791.7,3791.2,2.63767288]
[1753027455399,1.0197,3791.7,3791.2,3.0]
[1753027455612,0.4547,3791.6,3791.1,3.0]
[1753027455894,1.5697,3791.2,3790.3,0.001]
[1753027456108,3.18777405,3791.1,3790.6,3.5]
[1753027456313,1.0197,3791.2,3790.6,0.52638104]
[1753027456638,0.55,3791.5,3791.0,3.0]
[1753027456938,0.55,3791.3,3790.9,3.0]
[1753027457121,5.3947,3791.6,3790.6,0.52638104]
[1753027457439,0.55,3791.4,3790.8,3.0]
[1753027457637,0.55,3791.5,3790.8,3.51554383]
[1753027457822,0.55,3791.5,3791.4,0.1312]
[1753027458136,1.0197,3791.6,3791.4,0.1312]
[1753027458556,1.0197,3792.0,3791.4,0.1312]
[1753027458765,0.55,3791.9,3791.4,0.1312]
[1753027458918,3.18725186,3791.9,3791.0,3.0]
[1753027459247,3.18726989,3791.8,3791.7,0.1312]
[1753027459445,1.0047,3791.8,3791.7,0.1312]
[1753027459649,3.64196989,3791.8,3791.7,0.1312]
[1753027460157,0.55,3791.5,3790.7,3.0]
[1753027460320,3.18749462,3791.5,3791.4,0.1312]
[1753027460520,3.64219462,3791.5,3791.4,0.1312]
[1753027460716,1.0047,3791.5,3791.4,0.1312]
[1753027461354,3.64217857,3791.5,3791.4,0.1312]
[1753027461559,0.55,3791.0,3790.6,0.5]
[1753027461779,3.18783451,3791.0,3790.9,0.1312]
[1753027461927,3.18782643,3791.0,3790.9,0.1312]
[1753027462452,3.64252643,3791.0,3790.9,0.1312]
[1753027463455,1.0908,3791.1,3790.9,0.1312]
[1753027463647,1.0908,3791.1,3790.9,0.6312]
[1753027463820,3.64252643,3791.0,3790.9,0.6312]
[1753027464022,1.0047,3791.0,3790.9,0.6312]
[1753027464524,3.64252643,3791.0,3790.9,0.6312]
[1753027465059,4.81612888,3791.0,3790.9,0.6312]
[1753027465225,4.81612888,3791.0,3790.9,0.5]
[1753027466264,3.64252643,3791.0,3790.9,0.5]
[1753027467546,8.00052643,3791.0,3790.9,0.5]
[1753027467962,8.00052643,3791.0,3790.9,0.501]
[1753027468124,1.0908,3791.1,3790.9,0.501]
[1753027468325,4.355,3791.0,3790.9,0.501]
[1753027468525,4.355,3791.0,3790.9,0.6322]
[1753027468834,3.72856212,3791.1,3790.9,0.6322]
[1753027469032,4.355,3791.0,3790.9,0.6322]
[1753027469428,1.4959,3791.4,3790.9,0.6322]
[1753027469654,4.903,3791.3,3790.9,0.6322]
[1753027469966,7.54065672,3791.3,3790.9,0.6322]
[1753027470325,4.352,3791.2,3790.9,3.27006998]
[1753027470567,4.349,3791.1,3790.9,0.6322]
[1753027470724,4.349,3791.1,3790.9,3.27009418]
[1753027470925,4.349,3791.2,3791.0,2.6377983]
[1753027471275,4.349,3791.2,3790.9,0.6322]
[1753027471566,0.9984,3791.1,3790.9,0.501]
[1753027471765,4.23532643,3791.0,3790.9,0.501]
[1753027471969,4.68372643,3791.0,3790.9,0.501]
[1753027472281,5.86389363,3791.0,3790.9,0.501]
[1753027474390,5.86389363,3791.0,3790.9,0.001]
[1753027475379,4.68372643,3791.0,3790.9,0.001]
[1753027475578,3.18782643,3791.0,3790.9,0.001]
[1753027475780,2.63768998,3791.2,3790.9,0.001]
[1753027475980,0.8891,3791.4,3790.9,0.1322]
[1753027475981,7.42322643,3791.0,3790.9,0.1322]
[1753027476144,7.97322643,3791.0,3790.9,0.001]
[1753027476583,9.04743899,3791.0,3790.9,0.001]
[1753027476752,9.93653899,3791.0,3790.9,0.001]
[1753027479799,5.59953899,3791.0,3790.9,0.001]
[1753027480002,9.93053899,3791.0,3790.9,0.001]
[1753027481285,9.93053899,3791.0,3790.3,0.001]
[1753027481286,4.07734398,3790.4,3790.3,0.001]
[1753027481474,8.53154398,3790.4,3790.3,0.001]
[1753027481675,8.97994398,3790.4,3790.3,0.001]
[1753027481964,8.97994398,3790.4,3789.8,0.4]
[1753027481965,3.18900984,3789.3,3789.2,1e-08]
[1753027482270,8.99990302,3789.3,3789.2,1e-08]
[1753027482596,9.58310923,3789.3,3789.2,1e-08]
[1753027483267,12.58310923,3789.3,3789.2,1e-08]
[1753027484056,12.58110923,3789.3,3789.2,1e-08]
[1753027485080,12.78029588,3789.3,3789.2,1e-08]
[1753027485485,12.77629588,3789.3,3789.2,1e-08]
[1753027485682,4.1408581,3788.8,3788.7,1e-08]
[1753027485887,4.14120646,3788.3,3787.4,0.001]
[1753027486087,3.18991552,3788.0,3787.9,1e-08]
[1753027486295,8.48541552,3788.0,3787.9,1e-08]
[1753027486468,2.64061262,3787.0,3786.9,0.001]
[1753027486666,2.64061262,3787.0,3786.1,0.001]
[1753027486667,3.19117056,3786.2,3786.1,0.001]
[1753027486885,8.48567056,3786.2,3786.1,0.001]
[1753027487209,0.55,3786.2,3786.1,0.001]
[1753027487354,7.55917056,3786.2,3786.1,0.001]
[1753027487557,8.00757056,3786.2,3786.1,0.001]
[1753027487758,0.55,3786.2,3786.1,0.001]
[1753027488159,7.56217056,3786.2,3786.1,0.001]
[1753027488361,9.03089525,3786.2,3786.1,0.001]
[1753027488584,12.98239525,3786.2,3786.1,0.001]
[1753027488991,8.51667056,3786.2,3786.1,0.001]
[1753027489597,8.96507056,3786.2,3786.1,0.001]
[1753027489771,4.14267056,3786.2,3786.1,0.001]
[1753027490285,4.922,3786.2,3786.1,0.001]
[1753027490483,7.56317056,3786.2,3786.1,0.001]
[1753027491370,3.19117056,3786.2,3786.1,0.001]
[1753027491583,7.56817056,3786.2,3786.1,0.001]
[1753027491803,8.01657056,3786.2,3786.1,0.001]
[1753027492168,8.90017056,3786.2,3786.1,0.001]
[1753027494079,3.19165896,3785.5,3785.4,0.001]
[1753027494279,7.56665896,3785.5,3785.4,0.001]
[1753027494798,8.01505896,3785.5,3785.4,0.001]
[1753027495371,8.89865896,3785.5,3785.4,0.001]
[1753027495568,3.19172874,3785.4,3785.3,0.001]
[1753027495789,3.19186832,3785.2,3785.1,1e-08]
[1753027495994,8.45046832,3785.2,3785.1,1e-08]
[1753027496215,3.19221734,3784.7,3784.6,0.001]
[1753027496423,13.79958161,3784.7,3784.6,0.001]
[1753027496701,16.02385716,3784.7,3784.6,0.001]
[1753027497231,8.89621734,3784.7,3784.6,0.001]
[1753027497431,8.44681734,3784.7,3784.6,0.001]
[1753027497633,8.89521734,3784.7,3784.6,0.001]
[1753027498135,2.64277597,3783.9,3783.4,0.001]
[1753027498299,8.44837597,3783.9,3783.4,0.001]
[1753027498501,9.12286938,3783.9,3783.4,0.001]
[1753027499440,8.32298432,3783.9,3783.4,0.001]
[1753027499599,8.32298432,3783.9,3783.8,1e-08]
[1753027499795,4.373,3783.9,3783.8,1e-08]
[1753027500037,7.01577597,3783.9,3783.8,1e-08]
[1753027500541,7.01577597,3783.9,3783.4,0.001]
[1753027500542,4.07665537,3783.5,3783.4,1e-08]
[1753027500714,8.45365537,3783.5,3783.4,1e-08]
[1753027500908,15.96452246,3783.5,3783.4,1e-08]
[1753027501799,15.96452246,3783.5,3781.1,0.8907]
[1753027501800,2.64438332,3781.6,3781.1,0.8907]
[1753027502008,2.64452846,3781.4,3781.1,0.8907]
[1753027502219,0.8836,3781.2,3780.1,0.33523216]
[1753027502397,4.938,3781.1,3780.1,0.33523216]
[1753027502600,0.55,3781.0,3780.1,0.33523216]
[1753027502825,2.64536267,3780.2,3780.1,0.33523216]
[1753027503015,0.55,3780.5,3780.1,0.33523216]
[1753027503318,7.03923531,3780.4,3780.1,0.46723216]
[1753027503608,3.19536267,3780.2,3780.1,0.46723216]
[1753027503812,5.14728211,3780.2,3780.0,0.1]
[1753027504113,0.8836,3780.1,3780.0,0.1]
[1753027504420,4.41,3780.1,3780.0,0.5413]
[1753027504739,4.41,3780.1,3780.0,0.1]
[1753027504925,4.959,3780.1,3780.0,0.1]
[1753027505302,4.411,3780.1,3780.0,0.5413]
[1753027505635,4.961,3780.1,3780.0,0.1]
[1753027505800,8.98302688,3780.7,3780.0,0.1]
[1753027506002,0.4486,3781.8,3780.1,0.91715432]
[1753027506239,4.54822,3781.7,3780.2,0.14584543]
[1753027506448,3.3344741,3781.6,3780.1,1.332]
[1753027506749,0.55,3781.2,3780.0,0.1]
[1753027506900,0.55,3780.7,3780.0,0.1]
[1753027507097,3.19543266,3780.1,3780.0,0.1]
[1753027507297,7.61443266,3780.1,3780.0,0.05]
[1753027507638,4.418,3780.2,3780.0,0.4913]
[1753027507812,0.8836,3781.5,3780.1,0.4413]
[1753027508014,2.64531098,3780.3,3780.0,0.05]
[1753027508219,3.19543266,3780.1,3780.0,0.05]
[1753027508544,4.42,3780.1,3778.9,0.8907]
[1753027508737,3.64412575,3780.0,3778.5,1.332]
[1753027509043,3.64412575,3780.0,3778.0,1.332]
[1753027509044,0.55,3778.8,3778.0,1.332]
[1753027509233,4.422,3778.7,3778.1,0.4413]
[1753027509429,4.06226709,3780.8,3778.1,0.4413]
[1753027509430,0.8836,3780.1,3778.2,0.8907]
[1753027509631,0.8836,3780.6,3779.3,0.8907]
[1753027509806,0.8836,3781.1,3779.4,0.02645922]
[1753027510006,4.77782306,3781.0,3779.5,2.64579508]
[1753027510237,4.77782306,3781.0,3777.9,0.8907]
[1753027510238,2.64555325,3780.0,3777.9,0.8907]
[1753027510439,0.55,3779.7,3778.2,0.8907]
[1753027510613,0.55,3779.3,3778.2,0.8907]
[1753027510944,0.55,3779.0,3778.2,0.8907]
[1753027511241,0.55,3778.6,3776.9,0.8907]
[1753027511446,0.55,3778.4,3777.0,0.4413]
[1753027511646,0.55,3778.4,3777.1,0.02647533]
[1753027511852,0.55,3778.4,3777.0,0.4413]
[1753027512021,1.36400277,3778.4,3777.1,0.1332]
[1753027512222,1.36400277,3778.4,3775.5,6.342]
[1753027512223,4.61226709,3778.2,3776.3,0.8907]
[1753027512408,4.61226709,3778.2,3776.4,0.02648024]
[1753027512409,0.55,3777.7,3776.4,0.02648024]
[1753027512609,6.70903419,3778.2,3775.4,0.4413]
[1753027512610,0.55,3777.3,3775.4,0.4413]
[1753027512810,0.4486,3777.2,3775.0,0.86719006]
[1753027513038,0.55,3776.5,3775.1,2.64891536]
[1753027513237,2.6473996,3777.3,3775.0,1.30849006]
[1753027513238,0.4486,3777.3,3775.9,2.64830681]
[1753027513446,0.55,3776.8,3775.5,0.4413]
[1753027513639,4.522,3777.1,3775.6,0.02648585]
[1753027513842,4.529,3777.5,3775.7,0.4413]
[1753027514048,0.132,3777.8,3777.7,2.64711332]
[1753027514247,0.4486,3778.5,3777.1,2.64753382]
[1753027514248,3.53016981,3778.5,3777.1,2.64753382]